Cogmind - Beta 12 @@@ ROGUE MODE // 2023.11.01 @ 22:14:53 Player: Adi Result: Destroyed by S-10 Pest with Light Assault Rifle Performance ------------- Evolutions (0) 0 Regions Visited (2) 400 Robots Destroyed (13) 65 Value Destroyed (442) 442 Prototype IDs (0) 0 Alien Tech Used (0) 0 Bonus (0) 0 TOTAL SCORE: 907 Bonus ------- None Cogmind --------- Core Integrity 0/250 Matter 288/300 Energy 100/100 System Corruption 0% Temperature Cool (0) Movement Walking (120) Location -10/Mines Parts ------- > --- POWER (1) -------- (None) > --- PROPULSION (2) --- Aluminum Leg Aluminum Leg > --- UTILITY (2) ------ Small Storage Unit > --- WEAPON (2) ------- (None) > --- INVENTORY (8) ---- Aluminum Leg Flight Unit Flight Unit Flight Unit Small Storage Unit Seismic Detector Beam Cannon Assault Rifle Peak State ------------ > --- POWER ------------ Light Ion Engine > --- PROPULSION ------- Aluminum Leg Aluminum Leg > --- UTILITY ---------- Small Storage Unit Seismic Detector > --- WEAPON ----------- Medium Laser Assault Rifle > --- INVENTORY -------- Ion Engine Wheel Compact Wheel Assault Rifle [Rating: 7] Favorites ----------- Power Ion Engine Engine Ion Engine Propulsion Aluminum Leg Leg Aluminum Leg Wheel Compact Wheel Flight Unit Flight Unit Utility Small Storage Unit Device Seismic Detector Storage Small Storage Unit Weapon Assault Rifle Energy Gun Medium Laser Energy Cannon Beam Cannon Ballistic Gun Assault Rifle Build | -11 -10 -10 ------- Run | Jun Mat Min Slots Evolved . | . . . Power . | . . . Propulsion . | . . . Utility . | . . . Weapon . | . . . Parts Attached 22 | 8 10 4 Power 2 | 1 1 . Engine 2 | 1 1 . Core . | . . . Reactor . | . . . Propulsion 10 | 4 2 4 Treads . | . . . Leg 6 | 2 2 2 Wheel 2 | 2 . . Hover . | . . . Flight 2 | . . 2 Utility 3 | 1 2 . Device 2 | . 2 . Storage 1 | 1 . . Processor . | . . . Hackware . | . . . Protection . | . . . Artifact . | . . . Weapon 7 | 2 5 . Energy Gun 1 | 1 . . Energy Cannon 3 | . 3 . Ballistic Gun 3 | 1 2 . Ballistic Cannon . | . . . Launcher . | . . . Special Weapon . | . . . Impact Weapon . | . . . Slashing Weapon . | . . . Piercing Weapon . | . . . Special Melee Weapon . | . . . Unidentified Prototypes . | . . . Parts Lost 4 | . 2 2 Power 1 | . . 1 Propulsion 2 | . 1 1 Utility . | . . . Weapon 1 | . 1 . Highest Loss Streak 2 | . 2 1 To Critical Strikes . | . . . Average Slot Usage (%) 94 | . 96 91 Engine 13 | . 14 13 Leg 27 | . 27 27 Device 11 | . 12 11 Storage 14 | . 14 14 Energy Gun 3 | . 7 . Energy Cannon 8 | . 6 11 Ballistic Gun 12 | . 13 11 Naked Turns . | . . . Heaviest Build 16 | 12 16 16 Greatest Support 26 | 26 20 20 Greatest Overweight (x) 3 | 3 1 1 Average Overweight (x) . | . . . Largest Inventory Capacity 8 | 8 8 8 Average Capacity 7 | 6 8 8 Most Carried 8 | 4 8 8 Average Carried 6 | 1 7 7 Final Capacity 8 | 8 8 8 Final Carried 8 | 4 8 8 Class Distribution -------------------- 100% | Mutant Dominant Class ---------------- Mutant | -10/Materials Mutant | -10/Mines Resources | -11 -10 -10 ----------- Run | Jun Mat Min Matter Collected 495 | 234 208 53 Remotely . | . . . Salvage Created 496 | . 347 149 Parts 23 | . 17 6 Haulers Intercepted . | . . . Recyclers Shooed . | . . . Parts Field Recycled . | . . . Retrieved Matter . | . . . Parts Self-Destructed . | . . . Prevented . | . . . Kills | -11 -10 -10 ------- Run | Jun Mat Min Combat Hostiles Destroyed 13 | . 8 5 Melee 1 | . . 1 Guns 3 | . 3 . Cannons 9 | . 5 4 Classes Destroyed 2 | . 1 1 Swarmer 3 | . . 3 Grunt 10 | . 8 2 Best Kill Streak 6 | . 6 2 Combat Bots Only 6 | . 6 2 Max Kills in Single Turn 1 | . 1 1 Gunslinging . | . . . Exploded . | . . . Melee 1 | . . 1 Uniques/NPCs Destroyed . | . . . Combat | -11 -10 -10 -------- Run | Jun Mat Min Damage Taken 1001 | . 530 471 Core 250 | . 90 160 Absorbed by Shields . | . . . Core Remaining (%) 100 | 100 . . Volleys Fired 35 | . 24 11 Largest 2 | . 2 2 Hottest 80 | . 80 80 Shots Fired 70 | . 48 22 Gun 39 | . 28 11 Cannon 31 | . 20 11 Launcher . | . . . Special . | . . . Kinetic 35 | . 24 11 Thermal 35 | . 24 11 Explosive . | . . . Electromagnetic . | . . . Robot Hit Streak 13 | . 12 13 Robot Miss Streak 5 | . 5 2 Penetration Max . | . . . Secondary Targets . | . . . Shots Hit Robots 48 | . 30 18 Core Hits 22 | . 13 9 Critical Kills . | . . . Critical Parts Destroyed . | . . . Critical Strikes . | . . . Melee Attacks . | . . . Impact . | . . . Slashing . | . . . Piercing . | . . . Sneak Attacks . | . . . Combat Hostiles . | . . . Follow-up Attacks . | . . . Damage Inflicted 721 | . 454 267 Guns 344 | . 242 102 Cannons 369 | . 212 157 Explosions . | . . . Melee . | . . . Ramming 8 | . . 8 Kinetic 331 | . 229 102 Thermal 382 | . 225 157 Explosive . | . . . Electromagnetic . | . . . Impact . | . . . Slashing . | . . . Piercing . | . . . Highest Corruption . | . . . Average Corruption . | . . . Corruption Purged . | . . . Corruption Blocked . | . . . Overload Shots . | . . . Overflow Damage . | . . . Projectiles . | . . . Explosions . | . . . Melee . | . . . Knockbacks . | . . . Impact . | . . . Kinetic . | . . . Secondary . | . . . Self-Inflicted Damage . | . . . Shots . | . . . Rammed . | . . . Targets Rammed 2 | . . 2 Kicked 2 | . . 2 Crushed . | . . . Highest Temperature 557 | . 557 261 Average Temperature 198 | . 241 110 Received Heat Transfer 531 | . 321 210 Effects 2 | . 2 . Shutdowns 1 | . 1 . Short Circuit 1 | . 1 . Siege Activations . | . . . Robots Corrupted . | . . . Combat Hostiles . | . . . Parts Fried . | . . . Impact Corruptions . | . . . Robots Melted . | . . . Combat Hostiles . | . . . Parts Melted 1 | . . 1 Heat Transferred 814 | . 481 333 Parts Sabotaged . | . . . Parts Stolen . | . . . Parts Stripped . | . . . Power Chain Reactions . | . . . Missiles Intercepted . | . . . Alert | -11 -10 -10 ------- Run | Jun Mat Min Peak Influence 195 | . 195 155 Initial . | . . . Average 53 | . 56 65 Maximum Alert Level . | . . . Low Security (%) 100 | 100 100 100 Level 1 . | . . . Level 2 . | . . . Level 3 . | . . . Level 4 . | . . . Level 5 . | . . . High Security . | . . . Max Security . | . . . Squads Dispatched 1 | . 1 . Investigation . | . . . Extermination . | . . . Reinforcement 1 | . 1 . Assault . | . . . Garrison . | . . . Intercept . | . . . Searches Triggered . | . . . Construction Impeded . | . . . Haulers Reinforced . | . . . Active Scanning Responses . | . . . Cargo Convoy Interrupts . | . . . Stealth | -11 -10 -10 --------- Run | Jun Mat Min Distress Signals . | . . . Communications Jammed . | . . . Distress Signals . | . . . Times Spotted 20 | . 10 10 Peak Tracking Total 8 | . 8 4 Tactical Retreats . | . . . Traps | -11 -10 -10 ------- Run | Jun Mat Min Traps Triggered 1 | . 1 . Indirectly . | . . . Trap Hack Attempts . | . . . Triggered . | . . . Disarmed . | . . . Reprogrammed . | . . . Reused . | . . . Traps Extracted . | . . . Installed . | . . . Triggered . | . . . Machines | -11 -10 -10 ---------- Run | Jun Mat Min Machines Disabled 2 | . 1 1 Max in Single Turn 1 | . 1 1 Machines Repaired . | . . . Machines Sabotaged . | . . . Overloaded Fab Kills . | . . . Hacking | -11 -10 -10 --------- Run | Jun Mat Min Machines Accessed . | . . . Terminals . | . . . Fabricators . | . . . Repair Stations . | . . . Recycling Units . | . . . Scanalyzers . | . . . Garrison Access . | . . . Total Hacks . | . . . Successful . | . . . Failed . | . . . Catastrophic . | . . . Database Lockouts . | . . . Manual . | . . . Terminals . | . . . Fabricators . | . . . Repair Stations . | . . . Recycling Units . | . . . Scanalyzers . | . . . Garrison Access . | . . . Terminal Hacks . | . . . Fabricator Hacks . | . . . Repair Station Hacks . | . . . Recycling Unit Hacks . | . . . Scanalyzer . | . . . Garrison Access Hacks . | . . . Unauthorized Hacks . | . . . Terminals . | . . . Fabricators . | . . . Repair Stations . | . . . Recycling Units . | . . . Scanalyzers . | . . . Garrison Access . | . . . Data Cores Recovered . | . . . Used . | . . . Hacking Detections . | . . . Full Trace Events . | . . . Feedback Events . | . . . Feedback Blocked . | . . . Robot Schematics Acquired . | . . . Robots Built . | . . . Authchips . | . . . Time . | . . . Total Robot Build Rating . | . . . Part Schematics Acquired . | . . . Parts Built . | . . . Authchips . | . . . Time . | . . . Total Part Build Rating . | . . . Parts Repaired . | . . . Time . | . . . Parts Recycled . | . . . Recycled Matter . | . . . Retrieved Matter . | . . . Retrieved Components . | . . . Parts Scanalyzed . | . . . Part Schematics Acquired . | . . . Parts Damaged . | . . . Bothacking | -11 -10 -10 ------------ Run | Jun Mat Min Used RIF Installer . | . . . Robots Hacked . | . . . Non-combat . | . . . Combat . | . . . Robot Hacks Applied . | . . . Relay Couplers Released . | . . . Fabnet Peak Effective % . | . . . Robots Rewired . | . . . Allies Hacked . | . . . Hacks Repelled . | . . . Allies | -11 -10 -10 -------- Run | Jun Mat Min Total Allies . | . . . Largest Group . | . . . Highest-Rated Group . | . . . Highest-Rated Ally . | . . . Total Orders . | . . . Ally Attacks . | . . . Total Damage . | . . . Kills . | . . . Allies Corrupted . | . . . Allies Melted . | . . . Intel | -11 -10 -10 ------- Run | Jun Mat Min Robot Analysis Total . | . . . Derelict Logs Recovered . | . . . Drone Launches . | . . . Drone Recoveries . | . . . Exploration | -11 -10 -10 ------------- Run | Jun Mat Min Turns Passed 948 | 125 420 403 Spaces Moved 623 | 107 233 283 Core 76 | 76 . . Treads . | . . . Legs 540 | 24 233 283 Wheels 7 | 7 . . Hover . | . . . Flight . | . . . Fastest Speed 50 | 50 120 120 Average Speed 118 | 102 122 120 Slowest Speed 200 | 200 190 190 Overloaded Moves . | . . . Propulsion Burnouts . | . . . Robots Hopped . | . . . Cave-ins Triggered . | . . . Exploration Rate (%) 34 | 6 32 64 Regions Visited 2 Branch Regions 1 Pre-discovered Areas . | . . . Known Exits Taken . | . . . Unknown Exits Taken 2 | 1 1 . Scrap Searched . | . . . Spaces Dug . | . . . Terrain Destroyed . | . . . Melee . | . . . Projectile . | . . . AOE . | . . . Terrain Rammed . | . . . Walls Destroyed . | . . . Machines Disabled . | . . . Actions | -11 -10 -10 --------- Run | Jun Mat Min Total 767 | 119 324 324 Wait 44 | . 30 14 Move 621 | 106 232 283 Hop . | . . . Pick Up 22 | 5 14 3 Fast Attach 10 | 5 5 . Attach 4 | 1 2 1 Detach 2 | . . 2 Swap 8 | 2 3 3 Drop 19 | . 14 5 Fire 35 | . 24 11 Melee . | . . . Ram . | . . . Kick 2 | . . 2 Crush . | . . . Escape Stasis . | . . . Rewire . | . . . Trap . | . . . Miscellaneous . | . . . Route ------- -11/Junkyard -10/Materials -10/Mines History --------- Turn | Location | Event 19 | -11/Junkyard | Discovered new exit (range 14) 126 | -11/Junkyard | Entered Materials 303 | -10/Materials | Build established: Mutant 469 | -10/Materials | Discovered new exit (range 15) 546 | -10/Materials | Entered Mines 760 | -10/Mines | Core integrity fell below 50% 882 | -10/Mines | Core integrity fell below 20% 949 | -10/Mines | Destroyed by S-10 Pest with Light Assault Rifle Last Messages --------------- 00705_ Acquired Flight Unit. 00710_ R-06 Scavenger collects Flight Unit. 00735_ Connecting with Terminal... 00735_ Current location identified: Mines 00757_ Laser Drill disabled. 00772_ Particle Gun melted. 00772_ G-47 Trooper destroyed. 00778_ G-34 Mercenary destroyed. 00781_ Acquired 24 matter. 00792_ K-01 Serf collects debris. 00869_ Aluminum Leg destroyed. 00878_ Dropped Assault Rifle. 00878_ Dropped Beam Cannon. 00899_ S-10 Pest destroyed. 00910_ Kicked S-10 Pest out of the way. 00911_ S-10 Pest destroyed. 00912_ Acquired 20 matter. 00928_ Pulverizer disabled. 00930_ Ion Engine destroyed. 00930_ Critical hit (Burn: +37). Map ----- +----------------------------------------------------+ | | | | | | | | | | | | | | | ???????????????????????????????????????????? | | ???############????????????????????????????? | | ???# #????????????????????????????? | | ???# """ """ #????????????????????????????? | | ???# """ """ ####?????????????????????????? | | ???# """ """ #???####??????##??????????? | | ???# """*"" #??## ##???? ##?????????? | | ???# [ *%[ # #??# ##??# #?????????? | | ???# """ """ # #### ### #????###### | | ???# """ """ # #????#T | | ???# """ """ # #????## | | ???# """ """ ###### ### ##????#% " | | ???# #?#### ### #????# """ | | ???# #?# ## ##????#%""" | | ???############?# ##### [] ####?????# | | ????????????????# #??## k ##????????# """ | | ????????????????# #?## ####?????????# """ | | ????????????????# ### ##????????????# """ | | ????????????????# s@ #?????????????# | | ????????????????# ## ##????????????# """ | | ????????????????# ### ##???????????# """ | | ????????????????# #?## ##??????????# """ | | ???????????????? #??### ##?????????# | | ????????????????# #????# #?????????# | | ????????????????# #????# #?????????## # | | ????????????????# ????# ##??????????# # | | ????????????????? ????# ##???????????# # | | ????????????????? ????### #?????###????# # | | ????????????????? ??????# #???## ##???# # | | ????????????????? #??????# #??## #???# # | | ?????????????????#???????# #?## #???# % | | ????????????????????# #### ### #????# % | | ????????????????????# #????#### | | ????????????????????######### #???????? | | ????????????????????????????## #???????? | | ?????????????????????????????# #???????? | | ?????????????????????????????## #???????? | | ??????????????????????????????### #???????? | | ????????????????????????????????# #???????? | | ????????????????????????????????# #???????? | | ????????????????????????????????# #######?? | | ????????????????????????????????# #?# | | ????????????????????????????????#### ### ### | +----------------------------------------------------+ Best States ------------- Heat Dissipation 25 Energy Generation 10 Energy Capacity 250 Matter Stores 300 Matter Capacity 300 Sight Range 16 Terrain Scan Density 10 Evasion (%) 55 Item Schematics ----------------- None Robot Schematics ------------------ None Fabricated ------------ Nothing Alien Tech Used ----------------- None Achievements -------------- None Challenges ------------ None Game ------ Seed MediumMetafieldAutogun Manual? 0 Play Time 00:20:58 Cumulative 11.2 hours Start 2023.09.06 @ 17:37:20 End 2023.11.01 @ 22:14:53 Sessions 2 Manual Loads 0 Difficulty Rogue Special Mode None Game No. 19 Rogue 19 Adventurer 0 Explorer 0 Win Type - Total 0 Types 0/0/0/0/0/0/0/0/0 Lore% 3 Gallery% 15 Achievement% 6 Wizard Run 0 Options --------- ASCII 0 Keyboard 1 Movement Numpad Keybinds 0 Fullscreen 2 Font 18/Terminus Map View 76x50 Tactical HUD 1 Map Filters NONE Filters NONE Steam 1 RUN: ce35b735-8b86-4acd-8895-6d5f0ce6fc67